lending/lending_fUSD_20250425
["ID","MTS","AMOUNT","RATE_DAILY","PERIOD"]
[358978613,1745599862335,-990.01,0.0003041,2]
[358978614,1745599862345,-282.3874892,0.0003041,2]
[358978615,1745599862356,-500.0,0.0003041,2]
[358978616,1745599862366,-500.0,0.0003041,2]
[358978617,1745599862377,-500.0,0.0003041,2]
[358978618,1745599862387,-424.57571957,0.0003041,2]
[358978619,1745599862397,-289.91592802,0.0003041,2]
[358978620,1745599862408,-627.82,0.0003041,2]
[358978621,1745599862418,-500.0,0.0003041,2]
[358978622,1745599862430,-706.88,0.0003041,2]
[358978623,1745599862441,-500.0,0.0003041,2]
[358978624,1745599862451,-524.27557523,0.0003041,2]
[358978625,1745599862461,-500.0,0.0003041,2]
[358978626,1745599862472,-1079.1,0.0003041,2]
[358978627,1745599862483,-500.0,0.0003041,2]
[358978628,1745599862494,-500.0,0.0003041,2]
[358978629,1745599862505,-859.92,0.0003041,2]
[358978630,1745599862516,-500.0,0.0003041,2]
[358978631,1745599862529,-912.21,0.0003041,2]
[358978632,1745599862539,-534.46515515,0.0003041,2]
[358978633,1745599862550,-500.0,0.0003041,2]
[358978634,1745599862562,-500.0,0.0003041,2]
[358978635,1745599862572,-500.0,0.0003041,2]
[358978636,1745599862582,-722.61,0.0003041,2]
[358978637,1745599862592,-500.0,0.0003041,2]
[358978638,1745599862602,-500.0,0.0003041,2]
[358978639,1745599862612,-1379.45,0.0003041,2]
[358978640,1745599862623,-500.0,0.0003041,2]
[358978641,1745599862634,-500.0,0.0003041,2]
[358978642,1745599862647,-383.81,0.0003041,2]
[358978643,1745599862658,-1343.31,0.0003041,2]
[358978644,1745599862667,-500.0,0.0003041,2]
[358978645,1745599862678,-733.04,0.0003041,2]
[358978646,1745599862688,-500.0,0.0003041,2]
[358978647,1745599862698,-4684.45,0.0003041,2]
[358978648,1745599862708,-550.18807569,0.0003041,2]
[358978649,1745599862722,-500.0,0.0003041,2]
[358978650,1745599862731,-500.0,0.0003041,2]
[358978651,1745599862741,-825.76,0.0003041,2]
[358978652,1745599862752,-151.0,0.0003041,7]
[358978653,1745599862762,-19958.18,0.0003041,2]
[358978654,1745599862772,-500.0,0.0003041,2]
[358978655,1745599862782,-500.0,0.0003041,2]
[358978656,1745599862797,-500.0,0.0003041,2]
[358978657,1745599862809,-500.0,0.0003041,2]
[358978658,1745599862819,-685.95,0.0003041,2]
[358978659,1745599862830,-950.51,0.0003041,2]
[358978660,1745599862840,-500.0,0.0003041,2]
[358978661,1745599862852,-500.0,0.0003041,2]
[358978662,1745599862863,-500.0,0.0003041,2]
[358978663,1745599862875,-616.88,0.0003041,2]
[358978664,1745599862886,-500.0,0.0003041,2]
[358978665,1745599862896,-500.0,0.0003041,2]
[358978666,1745599862906,-500.0,0.0003041,2]
[358978667,1745599862916,-500.0,0.0003041,2]
[358978668,1745599862929,-512.28683793,0.0003041,2]
[358978669,1745599862938,-10406.43,0.0003041,2]
[358978670,1745599862949,-500.0,0.0003041,2]
[358978671,1745599862959,-344.584627,0.0003041,7]
[358978672,1745599862969,-151.0,0.0003041,7]
[358978673,1745599862980,-500.0,0.0003041,2]
[358978674,1745599862990,-500.0,0.0003041,2]
[358978675,1745599863001,-500.0,0.0003041,2]
[358978676,1745599863012,-344.584627,0.0003041,7]
[358978677,1745599863022,-500.0,0.0003041,2]
[358978678,1745599863033,-500.0,0.0003041,2]
[358978679,1745599863044,-563.62,0.0003041,2]
[358978680,1745599863053,-4004.55,0.0003041,2]
[358978681,1745599863064,-1088.33,0.0003041,2]
[358978682,1745599863074,-966.4,0.0003041,2]
[358978683,1745599863084,-500.0,0.0003041,2]
[358978684,1745599863095,-500.0,0.0003041,2]
[358978685,1745599863106,-524.26,0.0003041,2]
[358978686,1745599863117,-500.0,0.0003041,2]
[358978687,1745599863129,-500.0,0.0003041,2]
[358978688,1745599863139,-500.0,0.0003041,2]
[358978689,1745599863149,-153.817743,0.0003041,7]
[358978690,1745599863160,-500.0,0.0003041,2]
[358978691,1745599863170,-1005.04,0.0003041,2]
[358978692,1745599863186,-1001.96,0.0003041,2]
[358978693,1745599863197,-500.0,0.0003041,2]
[358978694,1745599863207,-500.0,0.0003041,2]
[358978695,1745599863218,-816.95,0.0003041,2]
[358978696,1745599863229,-500.0,0.0003041,2]
[358978697,1745599863240,-546.19407121,0.0003041,2]
[358978698,1745599863252,-500.0,0.0003041,2]
[358978699,1745599863263,-500.0,0.0003041,2]
[358978700,1745599863273,-151.0,0.0003041,7]
[358978701,1745599863283,-500.0,0.0003041,2]
[358978702,1745599863293,-500.0,0.0003041,2]
[358978703,1745599863305,-500.0,0.0003041,2]
[358978704,1745599863315,-500.0,0.0003041,2]
[358978705,1745599863326,-500.0,0.0003041,2]
[358978706,1745599863337,-500.0,0.0003041,2]
[358978707,1745599863346,-500.0,0.0003041,2]
[358978708,1745599863359,-852.32,0.0003041,2]
[358978709,1745599863369,-500.0,0.0003041,2]
[358978710,1745599863379,-711.88,0.0003041,2]
[358978711,1745599863390,-500.0,0.0003041,2]
[358978712,1745599863400,-500.0,0.0003041,2]
[358978713,1745599863410,-500.0,0.0003041,2]
[358978714,1745599863420,-934.03,0.0003041,2]
[358978715,1745599863434,-500.0,0.0003041,2]
[358978716,1745599863444,-500.0,0.0003041,2]
[358978717,1745599863454,-534.86789296,0.0003041,2]
[358978718,1745599863465,-560.45,0.0003041,2]
[358978719,1745599863475,-500.0,0.0003041,2]
[358978720,1745599863485,-6136.81,0.0003041,2]
[358978721,1745599863494,-500.0,0.0003041,2]
[358978722,1745599863504,-779.36,0.0003041,2]
[358978723,1745599863515,-500.0,0.0003041,2]
[358978724,1745599863526,-500.0,0.0003041,2]
[358978725,1745599863535,-609.87,0.0003041,2]
[358978726,1745599863546,-943.34,0.0003041,2]
[358978727,1745599863557,-500.0,0.0003041,2]
[358978728,1745599863567,-500.0,0.0003041,2]
[358978729,1745599863578,-500.0,0.0003041,2]
[358978730,1745599863589,-1522.7742,0.0003041,7]
[358978731,1745599863599,-873.68,0.0003041,2]
[358978732,1745599863609,-500.0,0.0003041,2]
[358978733,1745599863619,-500.0,0.0003041,2]
[358978734,1745599863630,-595.02,0.0003041,2]
[358978735,1745599863640,-626.11,0.0003041,2]
[358978736,1745599863651,-989.79,0.0003041,2]
[358978737,1745599863661,-1069.54,0.0003041,2]
[358978738,1745599863905,-500.0,0.0003041,2]
[358978739,1745599863915,-500.0,0.0003041,2]
[358978740,1745599863925,-1522.7742,0.0003041,7]
[358978741,1745599863935,-500.0,0.0003041,2]
[358978742,1745599863945,-1019.56,0.0003041,2]
[358978743,1745599863955,-500.0,0.0003041,2]
[358978744,1745599863964,-1055.91,0.0003041,2]
[358978745,1745599863974,-500.0,0.0003041,2]
[358978746,1745599863984,-151.0,0.0003041,7]
[358978747,1745599863993,-500.0,0.0003041,2]
[358978748,1745599864002,-500.0,0.0003041,2]
[358978749,1745599864012,-500.0,0.0003041,2]
[358978750,1745599864021,-500.0,0.0003041,2]
[358978751,1745599864031,-500.0,0.0003041,2]
[358978752,1745599864041,-500.0,0.0003041,2]
[358978753,1745599864050,-162.585841,0.0003041,7]
[358978754,1745599864059,-500.0,0.0003041,2]
[358978755,1745599864070,-669.87,0.0003041,2]
[358978756,1745599864079,-500.0,0.0003041,2]
[358978757,1745599864089,-500.0,0.0003041,2]
[358978758,1745599864099,-500.0,0.0003041,2]
[358978759,1745599864108,-500.0,0.0003041,2]
[358978760,1745599864118,-500.0,0.0003041,2]
[358978761,1745599864127,-5439.41,0.0003041,2]
[358978762,1745599864136,-500.0,0.0003041,2]
[358978763,1745599864146,-714.61,0.0003041,2]
[358978764,1745599864156,-500.0,0.0003041,2]
[358978765,1745599864166,-500.0,0.0003041,2]
[358978766,1745599864178,-500.0,0.0003041,2]
[358978767,1745599864189,-672.15,0.0003041,2]
[358978768,1745599864199,-869.52,0.0003041,2]
[358978769,1745599864208,-500.0,0.0003041,2]
[358978770,1745599864218,-1185.63,0.0003041,2]
[358978771,1745599864228,-500.0,0.0003041,2]
[358978772,1745599864237,-542.69729869,0.0003041,2]
[358978773,1745599864247,-500.0,0.0003041,2]
[358978774,1745599864257,-500.0,0.0003041,2]
[358978775,1745599864267,-500.0,0.0003041,2]
[358978776,1745599864278,-500.0,0.0003041,2]
[358978777,1745599864289,-500.0,0.0003041,2]
[358978778,1745599864298,-983.15,0.0003041,2]
[358978779,1745599864308,-500.0,0.0003041,2]
[358978780,1745599864318,-500.0,0.0003041,2]
[358978781,1745599864328,-500.0,0.0003041,2]
[358978782,1745599864337,-500.0,0.0003041,2]
[358978783,1745599864347,-151.0,0.0003041,7]
[358978784,1745599864357,-542.2,0.0003041,2]
[358978785,1745599864366,-500.0,0.0003041,2]
[358978786,1745599864375,-500.0,0.0003041,2]
[358978787,1745599864385,-595.07,0.0003041,2]
[358978788,1745599864395,-500.0,0.0003041,2]
[358978789,1745599864404,-500.0,0.0003041,2]
[358978790,1745599864415,-515.8212016,0.0003041,2]
[358978791,1745599864425,-500.0,0.0003041,2]
[358978792,1745599864435,-500.0,0.0003041,2]
[358978793,1745599864444,-1018.29,0.0003041,2]
[358978794,1745599864454,-795.68,0.0003041,2]
[358978795,1745599864463,-2152.1,0.0003041,2]
[358978796,1745599864473,-500.0,0.0003041,2]
[358978797,1745599864483,-500.0,0.0003041,2]
[358978798,1745599864492,-589.65950246,0.0003041,2]
[358978799,1745599864502,-208.96987963,0.0003041,2]
[358978800,1745599864511,-348730.1,0.0003041,2]
[358978801,1745599864520,-500.0,0.0003041,2]
[358978802,1745599864530,-669.94,0.0003041,2]
[358978803,1745599864539,-500.0,0.0003041,2]
[358978804,1745599864548,-618.93,0.0003041,2]
[358978805,1745599864558,-151.0,0.0003041,7]
[358978806,1745599864567,-500.0,0.0003041,2]
[358978807,1745599864577,-500.0,0.0003041,2]
[358978808,1745599864587,-554.66254026,0.0003041,2]
[358978809,1745599864596,-1022.67,0.0003041,2]
[358978810,1745599864606,-500.0,0.0003041,2]
[358978811,1745599864616,-500.0,0.0003041,2]
[358978812,1745599864626,-500.0,0.0003041,2]
[358978813,1745599864635,-988.92,0.0003041,2]
[358978814,1745599864645,-1098.22,0.0003041,2]
[358978815,1745599864655,-500.0,0.0003041,2]
[358978816,1745599864664,-572.07,0.0003041,2]
[358978817,1745599864675,-256.64858657,0.0003041,2]
[358978818,1745599864685,-500.0,0.0003041,2]
[358978819,1745599864695,-632.24,0.0003041,2]
[358978820,1745599864704,-856.07,0.0003041,2]
[358978821,1745599864714,-2047.35,0.0003041,2]
[358978822,1745599864723,-1466.24,0.0003041,2]
[358978823,1745599864733,-500.0,0.0003041,2]
[358978824,1745599864742,-782.3,0.0003041,2]
[358978825,1745599864751,-500.0,0.0003041,2]
[358978826,1745599864761,-500.0,0.0003041,2]
[358978827,1745599864770,-776.92,0.0003041,2]
[358978828,1745599864780,-500.0,0.0003041,2]
[358978829,1745599864790,-500.0,0.0003041,2]
[358978830,1745599864801,-1119.8,0.0003041,2]
[358978831,1745599864811,-500.0,0.0003041,2]
[358978832,1745599864820,-500.0,0.0003041,2]
[358978833,1745599864831,-985.68,0.0003041,2]
[358978834,1745599864840,-500.0,0.0003041,2]
[358978835,1745599864851,-1113.66,0.0003041,2]
[358978836,1745599864860,-952.26,0.0003041,2]
[358978837,1745599864872,-587.61,0.0003041,2]
[358978838,1745599864881,-626.08831798,0.0003041,2]
[358978839,1745599864891,-500.0,0.0003041,2]
[358978840,1745599864900,-1207.25,0.0003041,2]
[358978841,1745599864910,-500.0,0.0003041,2]
[358978842,1745599864919,-520.07210001,0.0003041,2]
[358978843,1745599864930,-500.0,0.0003041,2]
[358978844,1745599864939,-500.0,0.0003041,2]
[358978845,1745599864949,-766.4,0.0003041,2]
[358978846,1745599864958,-1110.54,0.0003041,2]
[358978847,1745599864968,-500.0,0.0003041,2]
[358978848,1745599864978,-514.56342934,0.0003041,2]
[358978849,1745599864987,-500.0,0.0003041,2]
[358978850,1745599864997,-749.42,0.0003041,2]
[358978851,1745599865008,-500.0,0.0003041,2]
[358978852,1745599865018,-904.12,0.0003041,2]
[358978853,1745599865027,-500.0,0.0003041,2]
[358978854,1745599865037,-500.0,0.0003041,2]
[358978855,1745599865046,-500.0,0.0003041,2]
[358978856,1745599865055,-500.0,0.0003041,2]
[358978857,1745599865065,-813.8,0.0003041,2]
[358978858,1745599865074,-500.0,0.0003041,2]
[358978859,1745599865084,-500.0,0.0003041,2]
[358978860,1745599865093,-500.0,0.0003041,2]
[358978861,1745599865102,-500.0,0.0003041,2]
[358978862,1745599865111,-1235.79,0.0003041,2]
[358978863,1745599865120,-578.78133075,0.0003041,2]
[358978864,1745599865130,-500.0,0.0003041,2]
[358978865,1745599865140,-239.42700533,0.0003041,2]
[358978866,1745599865149,-1008.46,0.0003041,2]
[358978867,1745599865158,-500.0,0.0003041,2]
[358978868,1745599865168,-1062.37,0.0003041,2]
[358978869,1745599865179,-500.0,0.0003041,2]
[358978870,1745599865189,-707.65,0.0003041,2]
[358978871,1745599865199,-500.0,0.0003041,2]
[358978872,1745599865209,-1117.03,0.0003041,2]
[358978873,1745599865218,-500.0,0.0003041,2]
[358978874,1745599865228,-500.0,0.0003041,2]
[358978875,1745599865237,-1060.87,0.0003041,2]
[358978876,1745599865247,-500.0,0.0003041,2]
[358978877,1745599865257,-770.13,0.0003041,2]
[358978878,1745599865267,-500.0,0.0003041,2]
[358978879,1745599865277,-500.0,0.0003041,2]
[358978880,1745599865286,-500.0,0.0003041,2]
[358978881,1745599865296,-151.0,0.0003041,7]
[358978882,1745599865305,-500.0,0.0003041,2]
[358978883,1745599865315,-1888.49,0.0003041,2]
[358978884,1745599865325,-500.0,0.0003041,2]
[358978885,1745599865335,-500.0,0.0003041,2]
[358978886,1745599865345,-670.74,0.0003041,2]
[358978887,1745599865354,-500.0,0.0003041,2]
[358978888,1745599865364,-151.0,0.0003041,7]
[358978889,1745599865374,-500.0,0.0003041,2]
[358978890,1745599865383,-6666.66,0.0003041,2]
[358978891,1745599865393,-500.0,0.0003041,2]
[358978892,1745599865403,-500.0,0.0003041,2]
[358978893,1745599865413,-500.0,0.0003041,2]
[358978894,1745599865422,-500.0,0.0003041,2]
[358978895,1745599865442,-430.35072616,0.0003041,2]
[358978896,1745599865452,-996.13,0.0003041,2]
[358978897,1745599865462,-614.16,0.0003041,2]
[358978898,1745599865472,-588.82986667,0.0003041,2]
[358978899,1745599865481,-500.0,0.0003041,2]
[358978900,1745599865492,-500.0,0.0003041,2]
[358978901,1745599865503,-557.66,0.0003041,2]
[358978902,1745599865512,-500.0,0.0003041,2]
[358978903,1745599865523,-1208.07,0.0003041,2]
[358978904,1745599865532,-500.0,0.0003041,2]
[358978905,1745599865542,-500.0,0.0003041,2]
[358978906,1745599865551,-1187.16,0.0003041,2]
[358978907,1745599865560,-500.0,0.0003041,2]
[358978908,1745599865570,-175.18485036,0.0003041,2]
[358978909,1745599865579,-500.0,0.0003041,2]
[358978910,1745599865589,-811.13,0.0003041,2]
[358978911,1745599865599,-928.52,0.0003041,2]
[358978912,1745599865608,-1045.74,0.0003041,2]
[358978913,1745599865618,-161.35701243,0.0003041,2]
[358978914,1745599865628,-500.0,0.0003041,2]
[358978915,1745599865638,-500.0,0.0003041,2]
[358978916,1745599865647,-849.84,0.0003041,2]
[358978917,1745599865657,-1818.74,0.0003041,2]
[358978918,1745599865666,-529.83180292,0.0003041,2]
[358978919,1745599865678,-737.09,0.0003041,2]
[358978920,1745599865688,-152.25535,0.0003041,7]
[358978921,1745599865698,-500.0,0.0003041,2]
[358978922,1745599865708,-500.0,0.0003041,2]
[358978923,1745599865717,-500.0,0.0003041,2]
[358978924,1745599865727,-500.0,0.0003041,2]
[358978925,1745599865737,-500.0,0.0003041,2]
[358978926,1745599865747,-500.0,0.0003041,2]
[358978927,1745599865757,-500.0,0.0003041,2]
[358978928,1745599865767,-981.54,0.0003041,2]
[358978929,1745599865777,-500.0,0.0003041,2]
[358978930,1745599865788,-500.0,0.0003041,2]
[358978931,1745599865799,-500.0,0.0003041,2]
[358978932,1745599865809,-500.0,0.0003041,2]
[358978933,1745599865819,-500.0,0.0003041,2]
[358978934,1745599865829,-1114.87,0.0003041,2]
[358978935,1745599865839,-500.0,0.0003041,2]
[358978936,1745599865849,-500.0,0.0003041,2]
[358978937,1745599865859,-823.83,0.0003041,2]
[358978938,1745599865870,-500.0,0.0003041,2]
[358978939,1745599865885,-528.52887777,0.0003041,2]
[358978940,1745599865895,-6847.17,0.0003041,2]
[358978941,1745599865904,-500.0,0.0003041,2]
[358978942,1745599865914,-500.0,0.0003041,2]
[358978943,1745599865923,-500.0,0.0003041,2]
[358978944,1745599865935,-500.0,0.0003041,2]
[358978945,1745599865944,-500.0,0.0003041,2]
[358978946,1745599865954,-500.0,0.0003041,2]
[358978947,1745599865963,-500.0,0.0003041,2]
[358978948,1745599865973,-500.0,0.0003041,2]
[358978949,1745599865983,-1185.34,0.0003041,2]
[358978950,1745599865993,-906.23,0.0003041,2]
[358978951,1745599866002,-311.01182144,0.0003041,2]
[358978952,1745599866012,-500.0,0.0003041,2]
[358978953,1745599866022,-500.0,0.0003041,2]
[358978954,1745599866031,-1283.1,0.0003041,2]
[358978955,1745599866041,-500.0,0.0003041,2]
[358978956,1745599866050,-500.0,0.0003041,2]
[358978957,1745599866060,-500.0,0.0003041,2]
[358978958,1745599866070,-542.38629098,0.0003041,2]
[358978959,1745599866079,-542.03,0.0003041,2]
[358978960,1745599866089,-520.83,0.0003041,2]
[358978961,1745599866099,-620.36,0.0003041,2]
[358978962,1745599866109,-750.36,0.0003041,2]
[358978963,1745599866119,-500.0,0.0003041,2]
[358978964,1745599866129,-590.87207911,0.0003041,2]
[358978965,1745599866139,-565.37413062,0.0003041,2]
[358978966,1745599866148,-500.0,0.0003041,2]
[358978967,1745599866158,-500.0,0.0003041,2]
[358978968,1745599866168,-500.0,0.0003041,2]
[358978969,1745599866178,-500.0,0.0003041,2]
[358978970,1745599866188,-1549.99,0.0003041,2]
[358978971,1745599866198,-500.0,0.0003041,2]
[358978972,1745599866208,-171.549012,0.0003041,2]
[358978973,1745599866218,-500.0,0.0003041,2]
[358978974,1745599866229,-500.0,0.0003041,2]
[358978975,1745599866239,-500.0,0.0003041,2]
[358978976,1745599866249,-500.0,0.0003041,2]
[358978977,1745599866259,-551.38411433,0.0003041,2]
[358978978,1745599866269,-500.0,0.0003041,2]
[358978979,1745599866279,-542.37,0.0003041,2]
[358978980,1745599866289,-500.0,0.0003041,2]
[358978981,1745599866299,-500.0,0.0003041,2]
[358978982,1745599866310,-500.0,0.0003041,2]
[358978983,1745599866320,-500.0,0.00030473,5]
[358978984,1745599866338,-500.0,0.00030473,5]
[358978985,1745599866354,-946.0,0.0003049,5]
[358978986,1745599866364,-195.99400128,0.00030584,2]
[358978987,1745599866374,-14559.9057199,0.00030584,2]
[358978988,1745599866384,-408.05768654,0.00030584,2]
[358978989,1745599866394,-1817.47453574,0.00030584,2]
[358978990,1745599866404,-146911.5793773,0.00030663,2]
[358978991,1745599866415,-150.0,0.00030672,3]
[358978992,1745599866425,-507.41235177,0.00030673,5]
[358978993,1745599866435,-666.0,0.00030683,10]
[358978994,1745599866446,-300.0,0.00030683,10]
[358978995,1745599866456,-150.0,0.00030683,3]
[358978996,1745599866466,-574.55731608,0.00030684,2]
[358978997,1745599866476,-517.24453531,0.00030684,2]
[358978998,1745599866486,-500.0,0.00030684,2]
[358978999,1745599866496,-500.0,0.00030684,2]
[358979000,1745599866506,-500.0,0.00030684,2]
[358979001,1745599866516,-500.0,0.00030684,2]
[358979002,1745599866527,-500.0,0.00030684,2]
[358979003,1745599866537,-500.0,0.00030684,2]
[358979004,1745599866547,-500.0,0.00030684,2]
[358979005,1745599866558,-500.0,0.00030684,2]
[358979006,1745599866568,-500.0,0.00030684,2]
[358979007,1745599866578,-500.0,0.00030684,2]
[358979008,1745599866589,-763.89,0.00030684,2]
[358979009,1745599866599,-500.0,0.00030684,2]
[358979010,1745599866610,-500.0,0.00030684,2]
[358979011,1745599866620,-500.0,0.00030684,2]
[358979012,1745599866630,-500.0,0.00030684,2]
[358979013,1745599866639,-500.0,0.00030684,2]
[358979014,1745599866649,-500.0,0.00030684,2]
[358979015,1745599866659,-1235.27,0.00030684,2]
[358979016,1745599866670,-500.0,0.00030684,2]
[358979017,1745599866680,-355.27438782,0.00030684,2]
[358979018,1745599866690,-500.0,0.00030684,2]
[358979019,1745599866700,-534.98,0.00030684,2]
[358979020,1745599866710,-500.0,0.00030684,2]
[358979021,1745599866720,-500.0,0.00030684,2]
[358979022,1745599866730,-500.0,0.00030684,2]
[358979023,1745599866740,-249.98232684,0.00030684,2]
[358979024,1745599866751,-500.0,0.00030684,2]
[358979025,1745599866767,-500.0,0.00030684,2]
[358979026,1745599866779,-500.0,0.00030684,2]
[358979027,1745599866791,-500.0,0.00030684,2]
[358979028,1745599866805,-500.0,0.00030684,2]
[358979029,1745599866816,-500.0,0.00030684,2]
[358979030,1745599866828,-500.0,0.00030684,2]
[358979031,1745599866840,-948.3,0.00030684,2]
[358979032,1745599866851,-500.0,0.00030684,2]
[358979033,1745599866863,-500.0,0.00030684,2]
[358979034,1745599866876,-500.0,0.00030684,2]
[358979035,1745599866888,-500.0,0.00030684,2]
[358979036,1745599866898,-557.17458355,0.00030684,2]
[358979037,1745599866909,-500.0,0.00030684,2]
[358979038,1745599866919,-500.0,0.00030684,2]
[358979039,1745599866932,-500.0,0.00030684,2]
[358979040,1745599866942,-575.86260569,0.00030684,2]
[358979041,1745599866952,-1522.5,0.00030684,2]
[358979042,1745599866963,-500.0,0.00030684,2]
[358979043,1745599866973,-500.0,0.00030684,2]
[358979044,1745599866982,-1567.43,0.00030684,2]
[358979045,1745599866994,-500.0,0.00030684,2]
[358979046,1745599867005,-500.0,0.00030684,2]
[358979047,1745599867016,-500.0,0.00030684,2]
[358979048,1745599867028,-500.0,0.00030684,2]
[358979049,1745599867039,-1044.85,0.00030684,2]
[358979050,1745599867050,-500.0,0.00030684,2]
[358979051,1745599867060,-678.19,0.00030684,2]
[358979052,1745599867070,-500.0,0.00030684,2]
[358979053,1745599867079,-500.0,0.00030684,2]
[358979054,1745599867089,-500.0,0.00030684,2]
[358979055,1745599867099,-240.23479479,0.00030684,2]
[358979056,1745599867109,-500.0,0.00030684,2]
[358979057,1745599867120,-500.0,0.00030684,2]
[358979058,1745599867131,-500.0,0.00030684,2]
[358979059,1745599867141,-444.04045586,0.00030684,2]
[358979060,1745599867152,-500.0,0.00030684,2]
[358979061,1745599867163,-500.0,0.00030684,2]
[358979062,1745599867175,-500.0,0.00030684,2]
[358979063,1745599867186,-1000.0,0.00030684,2]
[358979064,1745599867196,-500.0,0.00030684,2]
[358979065,1745599867206,-543.25799035,0.00030684,2]
[358979066,1745599867220,-1055.46,0.00030684,2]
[358979067,1745599867230,-1075.39,0.00030684,2]
[358979068,1745599867240,-500.0,0.00030684,2]
[358979069,1745599867250,-500.0,0.00030684,2]
[358979070,1745599867260,-575.49467978,0.00030684,2]
[358979071,1745599867271,-500.0,0.00030684,2]
[358979072,1745599867281,-500.0,0.00030684,2]
[358979073,1745599867291,-517.15789767,0.00030684,2]
[358979074,1745599867659,-500.0,0.00030684,2]
[358979075,1745599867669,-151.0,0.00030684,7]
[358979076,1745599867678,-526.73970957,0.00030684,2]
[358979077,1745599867688,-500.0,0.00030684,2]
[358979078,1745599867697,-620.10287302,0.00030684,2]
[358979079,1745599867707,-525.69,0.00030684,2]
[358979080,1745599867717,-500.0,0.00030684,2]
[358979081,1745599867727,-500.0,0.00030684,2]
[358979082,1745599867736,-159.708222,0.00030684,7]
[358979083,1745599867746,-965.29,0.00030684,2]
[358979084,1745599867755,-500.0,0.00030684,2]
[358979085,1745599867765,-570.04,0.00030684,2]
[358979086,1745599867775,-500.0,0.00030684,2]
[358979087,1745599867784,-574.84998572,0.00030684,2]
[358979088,1745599867797,-544.76613967,0.00030684,2]
[358979089,1745599867807,-500.0,0.00030684,2]
[358979090,1745599867816,-151.0,0.00030684,7]
[358979091,1745599867825,-500.0,0.00030684,2]
[358979092,1745599867834,-1144.66,0.00030684,2]
[358979093,1745599867845,-500.0,0.00030684,2]
[358979094,1745599867854,-500.0,0.00030684,2]
[358979095,1745599867864,-500.0,0.00030684,2]
[358979096,1745599867875,-151.0,0.00030684,7]
[358979097,1745599867885,-500.0,0.00030684,2]
[358979098,1745599867894,-153.509044,0.00030684,7]
[358979099,1745599867904,-500.0,0.00030684,2]
[358979100,1745599867915,-500.0,0.00030684,2]
[358979101,1745599867926,-500.0,0.00030684,2]
[358979102,1745599867937,-500.0,0.00030684,2]
[358979103,1745599867946,-500.0,0.00030684,2]
[358979104,1745599867958,-500.0,0.00030684,2]
[358979105,1745599867969,-500.0,0.00030684,2]
[358979106,1745599867980,-500.0,0.00030684,2]
[358979107,1745599868000,-520.78,0.00030684,2]
[358979108,1745599868014,-151.0,0.00030684,7]
[358979109,1745599868024,-500.0,0.00030684,2]
[358979110,1745599868035,-893.12,0.00030684,2]
[358979111,1745599868044,-1114.74,0.00030684,2]
[358979112,1745599868056,-500.0,0.00030684,2]